bitfinex/quotes_ETHUSD_20250929
["timestamp","ask_amount","ask_price","bid_price","bid_amount"]
[1759104207942,40.56599903,4150.1,4150.0,0.002]
[1759104208536,16.29387103,4150.1,4150.0,0.002]
[1759104208859,19.29387103,4150.1,4150.0,0.002]
[1759104209678,36.41404903,4150.1,4150.0,0.002]
[1759104209842,33.52601603,4150.1,4150.0,0.002]
[1759104210042,32.32423203,4150.1,4150.0,0.002]
[1759104210278,32.07957203,4150.1,4150.0,0.002]
[1759104210565,31.28226103,4150.1,4150.0,0.002]
[1759104210775,32.40608503,4150.1,4150.0,0.002]
[1759104211140,32.78414875,4150.1,4150.0,0.002]
[1759104211474,30.33284775,4150.1,4150.0,0.002]
[1759104211681,30.18590275,4150.1,4150.0,0.002]
[1759104212670,35.26981175,4150.1,4150.0,0.002]
[1759104213644,40.25126275,4150.1,4150.0,0.002]
[1759104214046,30.11804075,4150.1,4150.0,0.002]
[1759104214376,24.01988975,4150.1,4150.0,0.002]
[1759104214582,20.74190775,4150.1,4150.0,0.002]
[1759104214769,22.75187075,4150.1,4150.0,0.242]
[1759104215140,22.27288275,4150.1,4150.0,0.002]
[1759104215345,16.88276175,4150.1,4150.0,0.6768]
[1759104215564,16.88276175,4150.1,4150.0,0.242]
[1759104215879,30.98629275,4150.1,4150.0,0.002]
[1759104216180,25.55332375,4150.1,4150.0,0.002]
[1759104216360,21.86547675,4150.1,4150.0,0.6768]
[1759104216748,22.92280975,4150.1,4150.0,0.6768]
[1759104216951,16.44789675,4150.1,4150.0,0.6768]
[1759104217149,16.44789675,4150.1,4150.0,0.242]
[1759104217378,16.44789675,4150.1,4150.0,0.002]
[1759104217695,16.44789675,4150.1,4150.0,0.242]
[1759104217850,25.81798175,4150.1,4150.0,0.002]
[1759104218186,25.81798175,4150.1,4150.0,0.242]
[1759104218885,29.72726503,4150.1,4150.0,0.242]
[1759104219090,25.20283803,4150.1,4150.0,0.242]
[1759104219280,24.82977803,4150.1,4150.0,0.242]
[1759104219788,29.23841503,4150.1,4150.0,0.242]
[1759104219983,28.39927003,4150.1,4150.0,0.002]
[1759104220864,33.27180503,4150.1,4150.0,0.002]
[1759104221073,32.76738803,4150.1,4150.0,0.002]
[1759104221474,30.27289603,4150.1,4150.0,0.002]
[1759104222079,30.07457503,4150.1,4150.0,0.002]
[1759104222277,29.67558803,4150.1,4150.0,0.002]
[1759104223199,30.42295803,4150.1,4150.0,0.002]
[1759104223375,29.76738803,4150.1,4150.0,0.002]
[1759104223557,25.30737361,4150.1,4150.0,0.002]
[1759104223996,27.72192061,4150.1,4150.0,0.002]
[1759104224187,26.87386161,4150.1,4150.0,0.002]
[1759104224901,17.49128161,4150.1,4150.0,0.686]
[1759104225098,17.88897461,4150.1,4150.0,0.686]
[1759104225396,19.04850461,4150.1,4150.0,0.686]
[1759104225600,20.38471461,4150.1,4150.0,0.686]
[1759104225803,29.32508861,4150.1,4150.0,0.686]
[1759104226103,30.21103061,4150.1,4150.0,0.2519]
[1759104226300,28.71059061,4150.1,4150.0,0.002]
[1759104226525,29.12693761,4150.1,4150.0,0.002]
[1759104226722,24.09575461,4150.1,4150.0,0.002]
[1759104227622,27.17151061,4150.1,4150.0,0.002]
[1759104228524,40.25126761,4150.1,4150.0,0.002]
[1759104228820,39.87319903,4150.1,4150.0,0.002]
[1759104231223,40.56849903,4150.1,4150.0,0.002]
[1759104231524,40.90754963,4150.1,4150.0,0.002]
[1759104232025,41.28565195,4150.1,4150.0,0.002]
[1759104238535,40.90754963,4150.1,4150.0,0.002]
[1759104241615,40.21224963,4150.1,4150.0,0.002]
[1759104241949,40.90754963,4150.1,4150.0,0.002]
[1759104242148,43.44754963,4150.1,4150.0,0.002]
[1759104242753,31.73962363,4150.1,4150.0,0.002]
[1759104243043,31.77868657,4150.1,4150.0,0.002]
[1759104243625,12.38145757,4150.1,4150.0,0.002]
[1759104243824,40.25131257,4150.1,4150.0,0.002]
[1759104247937,4.13764808,4150.1,4150.0,0.686]
[1759104248172,4.104,4150.1,4150.0,0.686]
[1759104248456,6.87807508,4150.1,4150.0,0.686]
[1759104248755,3.854,4150.1,4150.0,0.686]
[1759104248920,6.87807508,4150.1,4150.0,0.686]
[1759104249128,6.854,4150.1,4150.0,0.686]
[1759104251337,7.23202005,4150.1,4150.0,0.686]
[1759104251543,7.23302005,4150.1,4150.0,0.686]
[1759104252727,9.65868805,4150.1,4150.0,0.4361]
[1759104252931,23.12433005,4150.1,4150.0,0.6729]
[1759104253471,25.53391054,4150.1,4150.0,0.6729]
[1759104253832,7.91902005,4150.1,4150.0,0.6729]
[1759104254037,32.29006605,4150.1,4150.0,0.6729]
[1759104254347,34.69964654,4150.1,4150.0,0.6729]
[1759104255057,35.24307654,4150.1,4150.0,0.6729]
[1759104255269,34.97264754,4150.1,4150.0,0.6729]
[1759104256140,10.32860054,4150.1,4150.0,0.6729]
[1759104256356,36.02749954,4150.1,4150.0,0.6729]
[1759104256660,35.76682754,4150.1,4150.0,0.6729]
[1759104257053,13.22158405,4150.1,4150.0,0.6729]
[1759104257248,12.85689705,4150.1,4150.0,0.6729]
[1759104257631,15.26647754,4150.1,4150.0,0.6729]
[1759104258143,20.41921754,4150.1,4150.0,0.6729]
[1759104258341,19.14821754,4150.1,4150.0,0.6729]
[1759104258668,7.91902005,4150.1,4150.0,0.6729]
[1759104260362,7.23302005,4150.1,4150.0,0.6729]
[1759104261274,6.855,4150.1,4150.0,0.6729]
[1759104261964,7.57999055,4150.1,4150.0,0.6729]
[1759104262553,19.49229455,4150.1,4150.0,0.002]
[1759104262735,7.57999055,4150.1,4150.0,0.4518]
[1759104264239,7.57999055,4150.1,4150.0,0.002]
[1759104264642,7.57999055,4150.1,4150.0,0.4518]
[1759104265071,7.57999055,4150.1,4150.0,0.002]
[1759104265650,7.95801461,4150.1,4150.0,0.002]
[1759104266576,7.95801461,4150.1,4150.0,0.4518]
[1759104267454,7.95801461,4150.1,4150.0,0.6886]
[1759104267841,7.95801461,4150.1,4150.0,0.002]
[1759104268380,7.95801461,4150.1,4150.0,0.6886]
[1759104268745,7.57999055,4150.1,4150.0,0.6886]
[1759104270182,7.57999055,4150.1,4150.0,0.4518]
[1759104270369,7.57999055,4150.1,4150.0,0.002]
[1759104271585,18.18808555,4150.1,4150.0,0.002]
[1759104272174,18.56611322,4150.1,4150.0,0.002]
[1759104272857,7.95801822,4150.1,4150.0,0.6886]
[1759104274157,4.95801822,4150.1,4150.0,0.6886]
[1759104274361,4.23302767,4150.1,4150.0,0.6886]
[1759104275876,4.25710275,4150.1,4150.0,0.6886]
[1759104278586,3.87907508,4150.1,4150.0,0.6886]
[1759104279087,3.87907508,4150.1,4150.0,0.002]
[1759104279581,7.10787508,4150.1,4150.0,0.002]
[1759104279783,8.23643478,4150.1,4150.0,0.002]
[1759104280188,8.48543478,4150.1,4150.0,0.002]
[1759104280787,10.89501527,4150.1,4150.0,0.002]
[1759104280960,8.48543478,4150.1,4150.0,0.002]
[1759104281478,8.91773478,4150.1,4150.0,0.002]
[1759104281984,8.86346587,4150.1,4150.0,0.002]
[1759104282374,26.09961887,4150.1,4150.0,0.002]
[1759104282575,23.45324587,4150.1,4150.0,0.002]
[1759104282758,23.07521478,4150.1,4150.0,0.002]
[1759104283595,17.83066078,4150.1,4150.0,0.002]
[1759104284461,19.03376078,4150.1,4150.0,0.002]
[1759104285659,19.41179444,4150.1,4150.0,0.002]
[1759104286763,21.82137493,4150.1,4150.0,0.002]
[1759104286978,19.07336744,4150.1,4150.0,0.002]
[1759104287965,20.41033544,4150.1,4150.0,0.002]
[1759104288264,19.41033544,4150.1,4150.0,0.002]
[1759104288602,21.12671244,4150.1,4150.0,0.002]
[1759104288984,24.92671244,4150.1,4150.0,0.002]
[1759104289188,19.41033544,4150.1,4150.0,0.002]
[1759104289726,12.92232644,4150.1,4150.0,0.002]
[1759104289930,10.01163666,4150.1,4150.0,0.002]
[1759104290802,12.42121715,4150.1,4150.0,0.002]
[1759104291117,7.48203366,4150.1,4150.0,0.4311]
[1759104291426,4.104,4150.1,4150.0,0.6801]
[1759104293330,3.855,4150.1,4150.0,0.6801]
[1759104295525,4.57999405,4150.1,4150.0,0.6801]
[1759104296023,4.95799875,4150.1,4150.0,0.6801]
[1759104297324,4.2330047,4150.1,4150.0,0.6801]
[1759104297722,4.95799875,4150.1,4150.0,0.6801]
[1759104298831,4.57999405,4150.1,4150.0,0.6801]
[1759104299041,4.60406913,4150.1,4150.0,0.6801]
[1759104300610,0.001,4150.1,4150.0,3.08973855]
[1759104302144,0.001,4150.1,4150.0,0.6801]
[1759104302713,0.001,4150.1,4150.0,3.08973855]
[1759104303023,0.001,4150.1,4150.0,0.6801]
[1759104303628,0.2298,4150.1,4150.0,0.002]
[1759104304164,0.60779002,4150.1,4150.0,0.002]
[1759104304466,1.33277881,4150.1,4150.0,0.002]
[1759104304670,1.10397881,4150.1,4150.0,0.6801]
[1759104304952,0.37899002,4150.1,4150.0,0.6801]
[1759104305731,0.37899002,4150.1,4150.0,0.4311]
[1759104305936,0.37899002,4150.1,4150.0,0.002]
[1759104306135,0.6318651,4150.1,4150.0,0.002]
[1759104306563,1.0629651,4150.1,4150.0,0.002]
[1759104307553,2.05439161,4150.1,4150.0,0.002]
[1759104307768,5.05439161,4150.1,4150.0,0.002]
[1759104307971,5.03031653,4150.1,4150.0,0.002]
[1759104308131,7.43989702,4150.1,4150.0,0.002]
[1759104308337,11.40419653,4150.1,4150.0,0.002]
[1759104308653,11.02620651,4150.1,4150.0,0.002]
[1759104309242,13.21223851,4150.1,4150.0,0.002]
[1759104309461,15.621819,4150.1,4150.0,0.002]
[1759104309834,17.630819,4150.1,4150.0,0.002]
[1759104310280,24.9302,4150.1,4150.0,0.002]
[1759104310456,20.73787751,4150.1,4150.0,0.002]
[1759104310766,17.12418051,4150.1,4150.0,0.002]
[1759104311138,6.22902651,4150.1,4150.0,0.002]
[1759104311339,5.4411,4150.1,4150.0,0.002]
[1759104311739,5.81912298,4150.1,4150.0,0.002]
[1759104312067,6.06262298,4150.1,4150.0,0.002]
[1759104316985,8.47220347,4150.1,4150.0,0.002]
[1759104317195,10.01487565,4150.1,4150.0,0.002]
[1759104317388,7.60529516,4150.1,4150.0,0.002]
[1759104318454,39.12583065,4150.1,4150.0,0.002]
[1759104318681,23.08717865,4150.1,4150.0,0.002]
[1759104318887,22.17613567,4150.1,4150.0,0.002]
[1759104319677,34.17242567,4150.1,4150.0,0.002]
[1759104320077,32.29013867,4150.1,4150.0,0.002]
[1759104320432,31.06693367,4150.1,4150.0,0.002]
[1759104320581,30.53848467,4150.1,4150.0,0.002]
[1759104320780,31.98848467,4150.1,4150.0,0.002]
[1759104321595,40.53685827,4150.1,4150.0,0.002]
[1759104322117,40.91495515,4150.1,4150.0,0.002]
[1759104322719,35.87353715,4150.1,4150.0,0.002]
[1759104322920,35.61539915,4150.1,4150.0,0.002]
[1759104323421,24.27939455,4150.1,4150.0,0.002]
[1759104323619,31.02325655,4150.1,4150.0,0.002]
[1759104323987,31.36230715,4150.1,4150.0,0.002]
[1759104324718,40.91495515,4150.1,4150.0,0.002]
[1759104330451,43.45795515,4150.1,4150.0,0.002]
[1759104330615,40.91495515,4150.1,4150.0,0.002]
[1759104331669,40.53685827,4150.1,4150.0,0.002]
[1759104334448,40.91496221,4150.1,4150.0,0.002]
[1759104336281,43.45796221,4150.1,4150.0,0.002]
[1759104336638,43.69981887,4150.1,4150.0,0.002]
[1759104337585,43.45796221,4150.1,4150.0,0.002]
[1759104338945,43.45796221,4150.1,4149.5,0.002]
[1759104338946,4.65187083,4149.6,4149.5,1e-08]
[1759104339144,45.91680091,4149.6,4149.5,1e-08]
[1759104339480,46.55822583,4149.6,4149.5,1e-08]
[1759104339681,47.64636365,4149.6,4149.5,1e-08]
[1759104339987,47.21386365,4149.6,4149.5,1e-08]
[1759104340141,49.7320259,4149.6,4149.5,1e-08]
[1759104340583,49.35388808,4149.6,4149.5,1e-08]
[1759104341962,49.12088808,4149.6,4149.5,1e-08]
[1759104342747,49.35388808,4149.6,4149.5,1e-08]
[1759104342957,48.20452708,4149.6,4149.5,1e-08]
[1759104343453,48.58264778,4149.6,4149.5,1e-08]
[1759104343884,49.49900878,4149.6,4149.5,1e-08]
[1759104344090,49.73200878,4149.6,4149.5,1e-08]
[1759104345376,50.07105938,4149.6,4149.5,1e-08]
[1759104346595,49.83805938,4149.6,4149.5,1e-08]
[1759104346986,49.49900878,4149.6,4149.5,0.46320001]
[1759104347390,47.78496278,4149.6,4149.5,1e-08]
[1759104347973,49.49900878,4149.6,4149.5,1e-08]
[1759104348701,49.73200878,4149.6,4149.5,1e-08]
[1759104349399,50.50355938,4149.6,4149.5,1e-08]
[1759104349594,50.07105938,4149.6,4149.5,1e-08]
[1759104350368,50.12543868,4149.6,4149.5,1e-08]
[1759104351727,49.45993868,4149.6,4149.5,1e-08]
[1759104352492,49.69293868,4149.6,4149.5,1e-08]
[1759104354103,21.82308368,4149.6,4149.5,1e-08]
[1759104354604,49.69293868,4149.6,4149.5,1e-08]
[1759104357577,50.12543868,4149.6,4149.5,1e-08]
[1759104358816,49.69293868,4149.6,4149.5,1e-08]
[1759104359037,49.12088808,4149.6,4149.5,1e-08]
[1759104359340,49.12088808,4149.6,4149.5,0.46320001]
[1759104359546,49.12088808,4149.6,4149.5,1e-08]
[1759104360239,36.77505008,4149.6,4149.5,0.71000001]
[1759104360442,4.091,4149.6,4149.5,0.71000001]
[1759104360602,2.365,4149.6,4149.5,0.71000001]
[1759104360938,24.02190083,4149.6,4149.5,1e-08]
[1759104361137,28.85988983,4149.6,4149.5,1e-08]
[1759104361339,23.84104983,4149.6,4149.5,1e-08]
[1759104361512,25.29204983,4149.6,4149.5,1e-08]
[1759104362009,25.76687401,4149.6,4149.5,1e-08]
[1759104362217,17.55130418,4149.6,4149.5,1e-08]
[1759104362429,12.60803218,4149.6,4149.5,1e-08]
[1759104362738,15.80990301,4149.6,4149.5,1e-08]
[1759104364240,32.85493601,4149.6,4149.5,1e-08]
[1759104364535,31.18214201,4149.6,4149.5,1e-08]
[1759104365034,34.90698591,4149.6,4149.5,1e-08]
[1759104365236,41.30189391,4149.6,4149.5,1e-08]
[1759104366142,13.43203891,4149.6,4149.5,1e-08]
[1759104366508,4.65339361,4148.7,4148.0,0.002]
[1759104366707,41.64332369,4148.7,4148.0,0.002]
[1759104366922,41.61924861,4148.7,4148.0,0.002]
[1759104367125,44.51562594,4148.7,4148.0,0.002]
[1759104367326,45.00692885,4148.7,4148.0,0.002]
[1759104367727,45.67242885,4148.7,4148.0,0.002]
[1759104368407,45.29421377,4148.7,4148.0,0.002]
[1759104368633,45.63326437,4148.7,4148.0,0.002]
[1759104371246,17.76340937,4148.7,4148.0,0.002]
[1759104371548,3.792,4148.6,4147.8,0.002]
[1759104371714,4.6538585,4147.9,4147.8,0.002]
[1759104371910,41.98383918,4147.9,4147.8,0.002]
[1759104372132,42.6252641,4147.9,4147.8,0.002]
[1759104372814,43.00359513,4147.9,4147.8,0.002]
[1759104373029,45.52175738,4147.9,4147.8,0.002]
[1759104373231,17.65190238,4147.9,4147.8,0.002]
[1759104373480,17.65190238,4147.9,4146.8,0.002]
[1759104373481,7.65414915,4147.4,4147.3,1e-08]
[1759104373634,39.61100415,4147.4,4147.3,1e-08]
[1759104373839,40.27650415,4147.4,4147.3,1e-08]
[1759104374043,43.133717,4147.4,4147.3,1e-08]
[1759104374240,42.63207234,4147.4,4147.3,1e-08]
[1759104374532,40.11391009,4147.4,4147.3,1e-08]
[1759104375960,38.66291009,4147.4,4147.3,1e-08]
[1759104377338,41.11846069,4147.4,4147.3,1e-08]
[1759104379479,40.11391009,4147.4,4147.3,1e-08]
[1759104379661,38.66291009,4147.4,4147.3,1e-08]
[1759104379866,41.18107234,4147.4,4147.3,1e-08]
[1759104382798,38.66291009,4147.4,4147.3,1e-08]
[1759104383009,33.24205454,4147.4,4147.3,1e-08]
[1759104383681,33.98760854,4147.4,4147.3,1e-08]
[1759104384512,38.28452554,4147.4,4147.3,1e-08]
[1759104385199,38.95002554,4147.4,4147.3,1e-08]
[1759104385371,41.46818779,4147.4,4147.3,1e-08]
[1759104385570,40.80268779,4147.4,4147.3,1e-08]
[1759104385875,42.25368779,4147.4,4147.3,1e-08]
[1759104386196,41.18102875,4147.4,4147.3,1e-08]
[1759104386602,41.18202875,4147.4,4147.3,1e-08]
[1759104386904,33.5812455,4147.4,4147.3,1e-08]
[1759104387806,38.6638665,4147.4,4147.3,1e-08]
[1759104388009,37.8516925,4147.4,4147.3,1e-08]
[1759104388368,4.59086235,4147.4,4147.3,1e-08]
[1759104388564,4.087,4147.4,4147.3,1e-08]
[1759104388808,7.087,4147.4,4147.3,1e-08]
[1759104389193,4.087,4147.4,4147.3,1e-08]
[1759104389901,0.001,4147.4,4147.3,1e-08]
[1759104396992,26.84569284,4147.4,4147.3,1e-08]
[1759104397219,28.64754416,4147.4,4147.3,1e-08]
[1759104397818,30.09854416,4147.4,4147.3,1e-08]
[1759104397987,33.66427416,4147.4,4147.3,1e-08]
[1759104398389,31.16738816,4147.4,4147.3,1e-08]
[1759104398893,36.63933716,4147.4,4147.3,1e-08]
[1759104402021,36.63933716,4147.4,4147.1,0.002]
[1759104402220,36.63933716,4147.4,4146.8,0.002]
[1759104402221,4.65443987,4146.9,4146.8,1e-08]
[1759104402427,34.56347487,4146.9,4146.8,1e-08]
[1759104402721,35.25287487,4146.9,4146.8,1e-08]
[1759104402922,14.43783987,4146.9,4146.8,1e-08]
[1759104403341,42.30769487,4146.9,4146.8,1e-08]
[1759104403636,41.56631112,4146.9,4146.8,1e-08]
[1759104404036,43.46303933,4146.9,4146.8,1e-08]
[1759104404734,43.80208993,4146.9,4146.8,1e-08]
[1759104405114,45.54330193,4146.9,4146.8,1e-08]
[1759104405322,45.20425133,4146.9,4146.8,1e-08]
[1759104405517,45.54330193,4146.9,4146.8,1e-08]
[1759104405953,3.20355617,4146.7,4146.6,1e-08]
[1759104406110,40.6996485,4146.7,4146.6,1e-08]
[1759104406311,42.81597342,4146.7,4146.6,1e-08]
[1759104406514,43.15502402,4146.7,4146.6,1e-08]
[1759104407130,16.86880442,4146.7,4146.6,1e-08]
[1759104407329,14.35064217,4146.7,4146.6,1e-08]
[1759104407715,15.14264217,4146.7,4146.6,1e-08]
[1759104408114,18.97425117,4146.7,4146.6,1e-08]
[1759104409019,21.74469517,4146.7,4146.6,1e-08]
[1759104409218,20.61595117,4146.7,4146.6,1e-08]
[1759104409454,13.64625617,4146.7,4146.6,1e-08]
[1759104410150,24.87133717,4146.7,4146.6,1e-08]
[1759104410354,22.16858217,4146.7,4146.6,1e-08]
[1759104410561,21.40186117,4146.7,4146.6,1e-08]
[1759104410757,23.92002342,4146.7,4146.6,1e-08]
[1759104410959,24.14502342,4146.7,4146.6,1e-08]
[1759104411260,29.35993242,4146.7,4146.6,1e-08]
[1759104411464,29.82433242,4146.7,4146.6,1e-08]
[1759104412166,41.36497342,4146.7,4146.6,1e-08]
[1759104413034,13.49511842,4146.7,4146.6,1e-08]
[1759104413251,41.36497342,4146.7,4146.6,1e-08]
[1759104413666,36.59157342,4146.7,4146.6,1e-08]
[1759104413854,37.22893742,4146.7,4146.6,1e-08]
[1759104414172,19.44775417,4146.7,4146.6,1e-08]
[1759104414445,17.54393684,4146.7,4146.6,1e-08]
[1759104414600,9.93132667,4146.7,4146.6,1e-08]
[1759104415099,13.13488284,4146.7,4146.6,1e-08]
[1759104415394,21.64151367,4146.7,4146.6,1e-08]
[1759104415694,18.57104767,4146.7,4146.6,1e-08]
[1759104416253,20.98260384,4146.7,4146.6,1e-08]
[1759104417383,21.52465473,4146.7,4146.6,1e-08]
[1759104417758,20.98260384,4146.7,4146.6,1e-08]
[1759104418373,18.57104767,4146.7,4146.6,1e-08]
[1759104418590,20.98260384,4146.7,4146.6,1e-08]
[1759104418795,20.60420517,4146.7,4146.6,1e-08]
[1759104419504,7.876,4146.7,4146.6,1e-08]
[1759104420593,0.001,4146.7,4146.6,1e-08]
[1759104422709,0.001,4146.7,4146.6,2.41161434]
[1759104426010,0.001,4146.7,4146.6,1e-08]
[1759104427601,0.001,4146.7,4146.6,2.41161434]
[1759104427796,0.001,4146.7,4146.6,2.43573048]
[1759104427977,0.001,4146.7,4146.6,0.02411615]
[1759104428382,0.001,4146.7,4146.6,1e-08]
[1759104429791,0.001,4146.7,4146.6,2.41161434]
[1759104429984,0.001,4146.7,4146.6,2.43573048]
[1759104430696,0.001,4146.7,4146.6,2.41161434]
[1759104431340,0.001,4146.7,4146.6,4.08100001]
[1759104431616,0.001,4146.7,4146.6,1e-08]
[1759104435468,0.001,4146.7,4146.6,2.41161434]
[1759104435636,0.001,4146.7,4146.6,2.53161434]
[1759104437282,0.001,4146.7,4146.6,6.61261434]
[1759104437475,0.001,4146.7,4146.6,2.53161434]
[1759104437679,0.001,4146.7,4146.6,8.62261434]
[1759104438376,0.001,4146.7,4146.6,2.53161434]
[1759104438680,0.001,4146.7,4146.6,8.64673048]
[1759104438843,0.001,4146.7,4146.6,8.62261434]
[1759104442150,0.001,4146.7,4146.6,8.62161434]
[1759104444679,0.001,4146.7,4146.6,2.53161434]
[1759104444888,0.001,4146.7,4146.6,8.62161434]
[1759104445254,0.001,4146.7,4146.6,6.61161434]
[1759104445478,0.001,4146.7,4146.6,8.62161434]
[1759104446293,0.001,4146.7,4146.6,2.53161434]
[1759104446294,0.4475,4146.7,4146.6,2.53161434]
[1759104446477,0.6774,4146.7,4146.6,6.61161434]
[1759104446683,0.2309,4146.7,4146.6,6.61161434]
[1759104448305,0.001,4146.7,4146.6,6.61161434]
[1759104449009,0.001,4146.7,4146.6,2.53161434]
[1759104449295,0.001,4146.7,4146.6,8.64573048]
[1759104449499,0.001,4146.7,4146.6,8.62161434]
[1759104450392,0.001,4147.6,4147.5,2.41109101]
[1759104450578,0.001,4147.6,4147.5,8.62109101]
[1759104452697,0.001,4149.6,4147.5,8.62109101]
[1759104452698,1e-08,4148.3,4148.2,2.41068415]
[1759104452994,1e-08,4148.3,4148.2,7.30579099]
[1759104453196,1e-08,4148.3,4148.2,7.40168415]
[1759104453395,1e-08,4148.3,4148.2,10.40168415]
[1759104454390,0.001,4149.6,4149.5,2.4099289]
[1759104454586,0.001,4149.6,4149.5,8.4999289]
[1759104454786,0.001,4149.6,4149.5,8.6199289]
[1759104457804,0.001,4149.6,4149.5,2.5299289]
[1759104458109,0.2309,4149.6,4149.5,8.6169289]
[1759104458603,0.001,4149.6,4149.5,8.6169289]
[1759104458968,0.6673,4149.6,4149.5,2.5299289]
[1759104459194,0.6673,4149.6,4149.5,6.6079289]
[1759104459395,0.6673,4149.6,4149.5,6.4879289]
[1759104459607,0.6673,4149.6,4149.3,2.4099959]
[1759104459802,0.6663,4149.5,4149.4,6.48897815]
[1759104460296,0.6663,4149.5,4149.4,4.079]
[1759104460717,0.6663,4149.5,4149.4,6.48898698]
[1759104461813,1.04434068,4149.5,4149.4,4.079]
[1759104462226,1.04434068,4149.5,4149.0,2.41016654]
[1759104462394,1.04434068,4149.5,4149.1,6.48815437]
[1759104462395,0.6663,4149.4,4149.1,6.48815437]
[1759104462598,0.001,4149.6,4149.4,2.40998698]
[1759104462796,0.001,4149.6,4149.5,6.51202818]
[1759104463007,0.001,4149.6,4149.5,6.4879289]
[1759104463421,0.001,4149.6,4149.5,6.6079289]
[1759104465308,0.4341,4149.6,4149.5,2.5299289]
[1759104465495,0.6673,4149.6,4149.5,8.6169289]
[1759104466224,0.6673,4149.6,4149.5,2.4099289]
[1759104466602,0.6673,4149.6,4149.5,6.4889289]
[1759104468218,0.6673,4149.6,4149.5,2.4099289]
[1759104469005,0.6673,4149.6,4149.5,6.4869289]
[1759104469346,0.001,4149.6,4149.5,6.4869289]
[1759104469704,0.001,4149.6,4149.5,6.6069289]
[1759104471515,0.001,4149.6,4149.5,6.6089289]
[1759104471751,0.001,4149.6,4149.5,8.6179289]
[1759104472839,0.001,4149.6,4149.5,6.6069289]
[1759104473508,0.001,4149.6,4149.5,2.5299289]
[1759104473708,0.6673,4149.6,4149.5,6.6069289]
[1759104475025,0.001,4149.6,4149.5,6.6069289]
[1759104475722,0.6673,4149.6,4149.5,6.6069289]
[1759104477145,0.6673,4149.6,4149.5,2.5299289]
[1759104477445,0.6673,4149.6,4149.5,4.077]
[1759104477835,0.6673,4149.6,4149.5,6.4869289]
[1759104478555,0.6673,4149.6,4149.3,2.41004206]
[1759104478556,0.6673,4149.6,4149.2,2.41009971]
[1759104478734,0.001,4149.6,4149.5,2.4099289]
[1759104479055,0.001,4149.6,4149.5,6.4869289]
[1759104479528,0.6673,4149.6,4149.5,6.4869289]
[1759104479931,0.6673,4149.6,4148.8,2.53029797]
[1759104479932,0.6673,4149.6,4148.8,2.129]
[1759104480131,0.6663,4149.5,4148.9,4.077]
[1759104480334,0.001,4149.6,4149.5,2.4099289]
[1759104480525,0.001,4149.6,4149.5,6.4869289]
[1759104480724,0.001,4149.6,4149.5,2.4099289]
[1759104480925,0.6673,4149.6,4149.3,2.40999655]
[1759104481167,0.6663,4149.5,4149.4,4.077]
[1759104481456,0.6663,4149.5,4149.4,6.48698698]
[1759104481765,0.6663,4149.5,4148.5,2.009]
[1759104481935,0.001,4149.6,4148.6,4.077]
[1759104481936,1.48237508,4149.4,4148.6,4.077]
[1759104482125,1.11463751,4149.3,4148.7,0.02410393]
[1759104482454,0.6663,4149.3,4148.5,2.41050474]
[1759104482655,0.6663,4149.2,4148.6,4.10110451]
[1759104482855,0.6663,4149.2,4149.1,2.41016123]
[1759104483151,0.2342,4149.6,4149.0,6.48721796]
[1759104483458,0.2342,4149.6,4149.0,6.48720307]
[1759104483955,0.2342,4149.6,4149.1,0.02410161]
[1759104484151,0.001,4149.6,4149.2,2.41005076]
[1759104484360,0.6663,4149.5,4149.3,4.10310045]
[1759104484526,0.001,4149.6,4149.3,6.51313727]
[1759104484720,0.6663,4149.4,4149.3,2.41003682]
[1759104484918,0.6663,4149.4,4149.3,2.43413727]
[1759104486120,0.6663,4149.4,4149.2,2.41009023]
[1759104486323,0.6663,4149.3,4149.2,6.48708329]
[1759104488465,0.6663,4149.3,4149.2,4.077]
[1759104488641,0.6663,4149.3,4149.1,2.41014574]
[1759104488842,0.001,4149.6,4149.2,4.077]
[1759104489232,0.001,4149.6,4149.2,6.48708303]
[1759104489537,0.7057,4149.5,4149.3,2.4100346]
[1759104489734,0.7057,4149.4,4149.3,2.43413505]
[1759104490134,0.001,4149.6,4149.5,2.4099289]
[1759104490356,0.001,4149.6,4149.5,6.51102818]
[1759104490554,0.001,4149.6,4149.5,6.4869289]
[1759104490873,0.001,4149.6,4149.5,6.6069289]
[1759104495073,0.001,4149.6,4149.5,9.6069289]
[1759104496145,0.001,4149.6,4149.5,10.0787708]
[1759104497044,0.001,4150.3,4150.2,2.40952243]
[1759104497045,1e-08,4150.3,4150.2,2.40952243]
[1759104497374,1e-08,4150.3,4150.2,11.61452243]
[1759104497541,1e-08,4150.3,4150.2,5.52952243]
[1759104497747,1e-08,4150.3,4150.2,11.61452243]
[1759104498477,1e-08,4150.3,4150.2,12.40652243]
[1759104498657,1e-08,4150.3,4150.2,6.32152243]
[1759104498855,1e-08,4150.3,4150.2,12.40652243]
[1759104499565,1e-08,4150.3,4150.2,12.40552243]
[1759104501368,1e-08,4150.3,4150.2,11.61352243]
[1759104501778,1e-08,4150.3,4150.2,5.52952243]
[1759104501991,1e-08,4150.3,4150.2,7.53752243]
[1759104502175,1e-08,4150.3,4150.2,11.61352243]
[1759104503253,1e-08,4150.3,4150.2,8.61352243]
[1759104503254,0.69360001,4150.3,4150.2,8.61352243]
[1759104503895,1e-08,4150.3,4150.2,8.61352243]
[1759104504965,1e-08,4150.3,4150.2,2.52952243]
[1759104505161,1e-08,4150.3,4150.2,8.61352243]
[1759104506175,0.24770001,4150.3,4150.2,6.60552243]
[1759104506380,0.69360001,4150.3,4150.2,8.61352243]
[1759104506574,0.001,4150.5,4150.4,2.40940632]
[1759104506795,0.001,4150.5,4150.4,6.50950038]
[1759104507095,0.001,4150.5,4150.4,6.48540632]
[1759104507498,0.001,4150.5,4150.4,2.40940632]